bitfinex/quotes_ETHUSD_20251125
["timestamp","ask_amount","ask_price","bid_price","bid_amount"]
[1764097054727,0.4577,2930.6,2929.9,0.218]
[1764097055016,1.0256568,2930.7,2929.9,0.218]
[1764097055426,0.24,2930.6,2929.9,0.218]
[1764097056114,0.24,2930.6,2930.0,3.41296928]
[1764097057030,0.24,2930.6,2930.0,6.82593856]
[1764097058119,0.24,2930.6,2930.0,10.23890784]
[1764097058320,0.24,2930.6,2930.0,10.33890784]
[1764097058712,0.24,2930.8,2930.4,0.1]
[1764097058910,0.002,2931.3,2930.5,0.218]
[1764097059626,0.002,2931.3,2930.6,0.218]
[1764097060136,0.002,2931.3,2930.7,6.82430818]
[1764097060352,0.31105842,2931.2,2930.7,6.82430818]
[1764097060505,0.31105842,2931.1,2930.8,0.218]
[1764097060706,0.31105842,2931.0,2930.8,0.218]
[1764097060939,0.002,2931.3,2930.8,0.218]
[1764097061128,0.31205547,2931.2,2930.8,0.218]
[1764097061343,0.31205547,2931.1,2930.8,0.218]
[1764097061637,0.31205547,2931.0,2930.8,0.218]
[1764097061836,0.31205547,2930.9,2930.8,0.218]
[1764097062314,0.31205547,2930.9,2930.8,3.63003766]
[1764097064031,0.002,2931.3,2930.8,10.45411298]
[1764097064221,0.31295935,2931.2,2930.9,0.1]
[1764097064417,0.002,2931.3,2931.0,6.82360968]
[1764097064620,0.002,2931.3,2931.1,0.218]
[1764097065228,0.002,2931.3,2931.0,6.82360968]
[1764097065229,0.002,2931.3,2931.0,3.41180484]
[1764097065443,0.002,2931.3,2929.4,3.41461571]
[1764097065444,0.475,2931.1,2929.7,10.23995628]
[1764097065742,0.475,2930.9,2929.8,0.218]
[1764097065917,0.31046942,2930.8,2929.8,0.218]
[1764097066109,0.1853,2930.7,2929.8,0.218]
[1764097066310,0.1853,2930.7,2929.9,6.82617154]
[1764097066845,0.17128797,2930.7,2929.9,6.82617154]
[1764097067442,0.17128797,2930.7,2930.0,0.218]
[1764097067859,0.17128797,2930.7,2930.1,0.218]
[1764097068026,0.17128797,2930.7,2929.9,6.82617154]
[1764097068553,0.17128797,2930.7,2930.1,6.8257056]
[1764097068864,0.62898797,2930.7,2930.2,0.218]
[1764097069354,0.4577,2930.6,2930.2,0.218]
[1764097069558,0.4577,2930.6,2929.9,6.82617154]
[1764097069762,0.4577,2930.6,2930.0,0.218]
[1764097069960,0.4577,2930.6,2929.9,3.41308577]
[1764097070133,0.4577,2930.6,2930.1,0.218]
[1764097070321,0.24,2930.5,2929.4,0.001]
[1764097070522,0.24,2930.5,2929.5,0.218]
[1764097070523,7.33249858,2930.5,2929.5,0.218]
[1764097070722,6.61,2930.5,2929.5,0.232]
[1764097070927,6.61,2930.5,2929.6,0.014]
[1764097073063,6.61,2930.5,2929.7,6.82663752]
[1764097073358,6.61,2930.5,2929.7,10.23995628]
[1764097073563,6.61,2930.5,2929.8,0.014]
[1764097074134,6.61,2930.5,2929.9,0.218]
[1764097074765,0.24,2930.4,2929.9,0.218]
[1764097075283,0.24,2930.4,2930.0,6.82593856]
[1764097075450,0.24,2930.4,2930.1,0.218]
[1764097076578,0.7039,2930.4,2930.1,0.218]
[1764097076776,0.7039,2930.4,2930.2,0.218]
[1764097077280,0.24,2930.4,2930.2,0.218]
[1764097077987,0.31425806,2930.3,2930.2,3.63070055]
[1764097078289,0.31425806,2930.3,2930.2,3.64470055]
[1764097078457,0.31425806,2930.3,2930.2,3.63070055]
[1764097078871,0.31425806,2930.3,2930.2,3.64470055]
[1764097079193,0.31425806,2930.3,2930.2,0.218]
[1764097079386,0.81355806,2930.3,2929.7,6.82663752]
[1764097079690,0.81355806,2930.3,2929.6,0.014]
[1764097079691,0.31425806,2930.2,2929.9,3.41308577]
[1764097079887,0.31425806,2930.1,2929.9,3.41308577]
[1764097080095,0.31425806,2930.0,2929.9,3.41308577]
[1764097080270,0.31425806,2930.0,2929.9,3.63108577]
[1764097080689,0.31425806,2930.0,2929.9,3.41308577]
[1764097080890,0.31425806,2930.0,2929.9,3.64508577]
[1764097081597,0.31425806,2930.0,2929.9,3.42708577]
[1764097081763,0.31425806,2930.0,2929.9,3.64508577]
[1764097081966,0.31425806,2930.0,2929.9,3.42708577]
[1764097082164,0.31425806,2930.0,2929.9,3.63108577]
[1764097082401,0.31425806,2930.0,2929.9,3.64508577]
[1764097083181,0.002,2930.7,2929.9,10.58525731]
[1764097083430,0.31432167,2930.6,2930.3,0.014]
[1764097083598,0.31432167,2930.5,2930.4,0.218]
[1764097083994,0.81362167,2930.5,2930.4,0.218]
[1764097084194,0.81362167,2930.5,2930.4,3.63050341]
[1764097084500,0.31432167,2930.5,2930.4,3.63050341]
[1764097084714,0.31432167,2930.5,2930.4,3.64450341]
[1764097085217,0.31432167,2930.5,2930.4,3.63050341]
[1764097085614,0.31432167,2930.5,2930.4,3.64450341]
[1764097086216,0.31432167,2930.5,2930.4,3.63050341]
[1764097086993,0.31432167,2930.5,2930.4,3.41250341]
[1764097087326,0.31432167,2930.5,2930.4,3.63050341]
[1764097088297,0.002,2930.7,2930.4,3.63050341]
[1764097088524,0.31457444,2930.6,2930.4,7.04300682]
[1764097089293,0.002,2930.7,2930.5,0.014]
[1764097090128,0.002,2930.7,2930.6,3.41227052]
[1764097090648,0.002,2930.7,2930.6,3.42627052]
[1764097091611,0.002,2930.7,2930.6,3.44027052]
[1764097091812,0.002,2930.7,2930.6,3.54027052]
[1764097095123,0.002,2930.7,2930.6,3.94577452]
[1764097097617,0.002,2930.7,2930.6,3.52627052]
[1764097097823,0.002,2930.7,2930.6,3.75727052]
[1764097099649,0.002,2930.7,2930.5,6.82477392]
[1764097099816,0.7393,2930.6,2930.5,3.41238696]
[1764097100144,0.7393,2930.6,2930.5,3.62938696]
[1764097101347,1.1966,2930.6,2930.5,3.62938696]
[1764097101544,1.1966,2930.6,2930.5,0.217]
[1764097101754,1.1966,2930.6,2930.4,0.001]
[1764097101915,0.24,2930.6,2930.5,0.217]
[1764097102311,0.7259,2930.6,2930.5,0.217]
[1764097102537,1.1832,2930.6,2930.5,0.217]
[1764097102849,0.6759,2930.6,2930.5,3.62938696]
[1764097103534,1.1332,2930.6,2930.5,3.62938696]
[1764097104051,0.19,2930.6,2930.5,3.62938696]
[1764097104948,0.19,2930.6,2930.5,3.64338696]
[1764097105536,0.19,2930.6,2930.5,3.62938696]
[1764097106973,0.19,2930.6,2930.5,3.64338696]
[1764097109251,0.19,2930.6,2930.5,0.231]
[1764097109482,0.9432,2930.6,2930.4,0.001]
[1764097109787,0.80048365,2930.5,2930.4,0.001]
[1764097110296,0.4859,2930.5,2930.4,0.001]
[1764097110485,0.4859,2930.5,2930.4,3.41350341]
[1764097110990,0.9432,2930.5,2930.4,0.001]
[1764097111190,0.9432,2930.5,2930.4,0.218]
[1764097111347,0.9432,2930.5,2930.4,3.63050341]
[1764097116890,1.2578598,2930.5,2930.4,0.001]
[1764097119401,0.4859,2930.5,2930.4,0.001]
[1764097119605,0.9432,2930.5,2930.4,0.001]
[1764097119977,0.9432,2930.5,2930.4,0.218]
[1764097120814,0.002,2930.6,2930.4,0.218]
[1764097120957,0.4859,2930.5,2930.4,0.218]
[1764097121365,0.9432,2930.5,2930.4,0.218]
[1764097121976,1.25758532,2930.5,2930.4,0.001]
[1764097122180,0.9432,2930.5,2930.4,0.001]
[1764097122459,1.0832,2930.5,2930.4,0.001]
[1764097123307,0.9432,2930.5,2930.4,0.001]
[1764097124423,1.25756267,2930.5,2930.4,0.001]
[1764097125420,0.9432,2930.5,2930.4,0.001]
[1764097126307,4.66997137,2930.5,2930.4,0.001]
[1764097127195,1.25758441,2930.5,2930.4,0.001]
[1764097128999,1.25758441,2930.5,2930.1,0.001]
[1764097129000,8.08235833,2930.5,2930.1,0.001]
[1764097129300,0.4859,2930.2,2930.1,0.001]
[1764097129605,1.25758441,2930.2,2930.1,0.001]
[1764097130036,2.28340605,2930.2,2930.1,0.001]
[1764097130397,1.25758441,2930.2,2930.1,0.001]
[1764097132837,0.31438441,2930.2,2930.1,0.016]
[1764097133011,0.002,2930.6,2930.1,0.016]
[1764097133012,0.31438441,2930.5,2930.1,0.016]
[1764097133213,0.002,2930.6,2930.1,0.016]
[1764097133520,0.31674118,2930.6,2930.1,0.016]
[1764097133933,0.31674118,2930.6,2930.2,0.217]
[1764097134246,0.14,2930.5,2930.2,0.217]
[1764097134446,0.45474118,2930.5,2930.2,3.62964836]
[1764097134615,0.4841,2930.3,2930.2,3.62964836]
[1764097135144,0.14,2930.5,2930.2,3.62964836]
[1764097135442,0.45475162,2930.5,2930.2,3.62964836]
[1764097136307,0.45475162,2930.5,2930.2,0.217]
[1764097136535,0.4841,2930.3,2930.1,0.218]
[1764097136722,0.79885162,2930.2,2930.1,0.218]
[1764097137055,0.79885162,2930.2,2930.1,3.6308528]
[1764097137343,0.79885162,2930.2,2930.1,0.218]
[1764097137514,0.79885162,2930.2,2930.1,3.6308528]
[1764097138023,1.25735162,2930.2,2930.1,3.6308528]
[1764097138222,1.25735162,2930.2,2930.1,3.4138528]
[1764097138423,1.25735162,2930.2,2930.1,3.6308528]
[1764097139842,1.25770935,2930.2,2930.1,0.218]
[1764097140013,1.39770935,2930.2,2930.1,0.001]
[1764097140209,0.45510935,2930.2,2930.1,3.6458528]
[1764097140414,0.14,2930.2,2930.1,3.6608528]
[1764097141621,0.14,2930.2,2930.1,3.6458528]
[1764097143632,0.14,2930.2,2930.1,3.4438528]
[1764097143822,0.14,2930.2,2930.1,8.45203274]
[1764097144022,0.14,2930.2,2930.1,8.95753674]
[1764097145318,0.14,2930.2,2930.1,3.9493568]
[1764097145514,0.14,2930.2,2930.1,3.7608528]
[1764097145847,0.14,2930.2,2930.1,3.4438528]
[1764097146048,0.14,2930.2,2930.1,3.6608528]
[1764097146435,0.002,2930.6,2930.1,10.4865584]
[1764097147155,0.002,2930.6,2930.2,0.217]
[1764097147340,0.002,2930.6,2930.1,6.8267056]
[1764097147541,0.4605,2930.2,2930.1,0.001]
[1764097147926,1.22640165,2930.2,2930.1,0.001]
[1764097148942,4.63913798,2930.2,2930.1,0.001]
[1764097150025,5.36473209,2930.2,2930.1,0.001]
[1764097151858,10.04371409,2930.2,2930.1,0.001]
[1764097152024,10.76866815,2930.2,2930.1,0.001]
[1764097152230,2.67694982,2930.2,2930.1,0.001]
[1764097152427,1.95199576,2930.2,2930.1,0.001]
[1764097152622,2.67683776,2930.2,2930.1,0.001]
[1764097152930,5.36473209,2930.2,2930.1,0.001]
[1764097153130,6.08957445,2930.2,2930.1,0.001]
[1764097153330,5.36473209,2930.2,2930.1,0.001]
[1764097153550,6.08940338,2930.2,2930.1,0.001]
[1764097153754,16.28317138,2930.2,2930.1,0.001]
[1764097154058,11.79955938,2930.2,2930.1,0.001]
[1764097154263,11.93634448,2930.2,2930.1,0.001]
[1764097155028,10.43259048,2930.2,2930.1,0.001]
[1764097155232,9.96009048,2930.2,2930.1,0.001]
[1764097156165,14.99995648,2930.2,2930.1,0.001]
[1764097156768,10.46393748,2930.2,2930.1,0.001]
[1764097156951,9.24452719,2930.2,2930.1,0.001]
[1764097157264,9.59190585,2930.2,2930.1,0.001]
[1764097157464,9.59190585,2930.2,2929.8,0.001]
[1764097157465,2.04249811,2930.1,2929.8,0.001]
[1764097157783,2.04249811,2930.1,2929.5,0.001]
[1764097157784,0.405504,2929.7,2929.5,0.001]
[1764097157957,0.77550165,2929.6,2929.5,0.001]
[1764097158126,2.97822445,2929.6,2929.5,0.001]
[1764097158682,2.97822445,2929.6,2926.7,0.13683049]
[1764097158683,17.422331,2929.4,2927.3,3.41608845]
[1764097158879,17.422331,2929.4,2927.3,3.43208845]
[1764097158880,0.4605,2928.2,2927.3,3.43208845]
[1764097159561,1.02645692,2928.1,2927.3,6.84820569]
[1764097160242,1.02645692,2928.1,2927.4,0.217]
[1764097160555,0.4731,2928.0,2927.3,6.83220569]
[1764097161162,3.88840054,2928.0,2927.1,0.217]
[1764097161347,0.72559411,2927.9,2927.1,0.217]
[1764097161562,0.4731,2927.9,2927.1,0.217]
[1764097161892,0.4731,2927.9,2927.2,3.41623394]
[1764097162586,1.02664309,2927.8,2927.2,3.41623394]
[1764097163755,1.02664309,2927.8,2927.0,3.41642458]
[1764097163756,4.44225637,2927.8,2927.0,6.83289195]
[1764097164283,4.44225637,2927.8,2927.0,3.41642458]
[1764097164484,4.44225637,2927.8,2927.0,3.63342458]
[1764097164650,4.44225637,2927.8,2927.0,3.41642458]
[1764097164967,0.4731,2927.7,2926.7,0.217]
[1764097165379,0.4731,2927.7,2926.5,3.41699287]
[1764097165564,0.4731,2927.7,2926.6,0.217]
[1764097165762,6.83153436,2927.6,2926.6,3.63389086]
[1764097166272,6.83153436,2927.6,2926.0,6.83526998]
[1764097166273,0.6831,2926.7,2926.0,6.83526998]
[1764097166582,0.1931,2927.0,2926.1,0.016]
[1764097166983,1.02691369,2926.9,2926.0,6.83526998]
[1764097167281,1.02691369,2926.9,2926.1,0.217]
[1764097167282,1.50001369,2926.9,2926.1,0.217]
[1764097167982,1.50001369,2926.9,2926.2,6.8348028]
[1764097168794,0.1931,2927.9,2926.8,0.016]
[1764097168956,0.1931,2927.9,2926.4,4.79117994]
[1764097168957,4.209137,2927.8,2926.9,0.25]
[1764097169171,1.21968337,2927.9,2926.9,0.25]
[1764097169172,0.1931,2927.9,2927.0,0.234]
[1764097169476,1.02658337,2928.2,2927.0,0.234]
[1764097169675,0.67,2928.3,2927.1,0.016]
[1764097169880,0.1969,2928.3,2927.2,13.66493576]
[1764097170219,0.1969,2928.3,2927.2,10.24870182]
[1764097170508,1.21944455,2928.8,2928.2,0.016]
[1764097170666,0.1931,2928.8,2928.2,0.234]
[1764097170871,0.6662,2928.8,2928.3,0.218]
[1764097171388,0.4731,2928.7,2928.3,0.218]
[1764097172101,0.1931,2928.8,2928.3,3.63291498]
[1764097172304,0.6662,2928.8,2928.3,3.41491498]
[1764097172619,0.1931,2929.1,2928.3,7.04786563]
[1764097172911,0.6662,2929.1,2928.3,7.04786563]
[1764097173270,4.08023026,2929.1,2928.3,7.04786563]
[1764097173481,4.08023026,2929.1,2928.3,3.63291498]
[1764097173890,4.08022093,2929.1,2928.3,7.04786563]
[1764097174508,0.6662,2929.1,2928.3,7.04786563]
[1764097175615,3.41381231,2929.3,2928.3,7.06386563]
[1764097175826,3.88691231,2929.3,2928.3,7.06386563]
[1764097176119,3.88691231,2929.3,2928.3,3.64891498]
[1764097176273,3.88691231,2929.3,2928.3,7.06386563]
[1764097178140,0.31313738,2929.2,2928.4,0.016]
[1764097178342,0.31313738,2929.2,2928.3,7.04786563]
[1764097178501,0.78623738,2929.2,2928.4,0.217]
[1764097178692,0.4731,2929.2,2928.4,0.217]
[1764097178899,0.4731,2929.1,2928.4,0.217]
[1764097180438,3.88712001,2929.1,2928.5,3.41471743]
[1764097180797,3.41402001,2929.1,2928.6,0.217]
[1764097181003,0.4731,2929.0,2928.6,0.217]
[1764097182405,0.1931,2928.9,2928.6,3.63156768]
[1764097182911,0.6662,2928.9,2928.6,0.217]
[1764097183435,0.49,2928.7,2927.4,3.41600054]
[1764097183634,7.49470727,2928.9,2927.4,3.41600054]
[1764097183635,0.9631,2928.6,2927.5,0.74159411]
[1764097183839,0.4731,2928.5,2927.5,0.95859411]
[1764097184744,0.4731,2928.5,2927.6,3.41576718]
[1764097185236,0.4731,2928.5,2927.6,10.24730154]
[1764097185531,0.4731,2928.5,2927.7,0.233]
[1764097187239,0.1931,2928.9,2928.4,0.016]
[1764097187535,0.1931,2928.9,2928.1,0.217]
[1764097187536,0.78702767,2928.8,2928.1,0.217]
[1764097187709,0.31392767,2928.7,2927.1,15.15623189]
[1764097187910,0.78702767,2928.7,2927.2,0.217]
[1764097188120,0.78702767,2928.6,2927.1,10.26505195]
[1764097188336,0.31392767,2928.5,2927.2,0.217]
[1764097188510,0.78702767,2928.5,2927.3,0.217]
[1764097188708,0.31392767,2928.4,2927.3,0.217]
[1764097188924,0.31392767,2928.4,2927.4,0.217]
[1764097188925,0.78702767,2928.4,2927.4,0.217]
[1764097189125,3.41506727,2928.2,2927.5,3.41588385]
[1764097189332,0.31392767,2928.1,2927.5,6.8317677]
[1764097189538,0.78702767,2928.1,2927.5,6.8317677]
[1764097189707,0.4731,2928.1,2927.5,6.8317677]
[1764097190029,0.4731,2928.1,2927.4,3.63295071]
[1764097190229,0.4731,2928.1,2927.4,3.41595071]
[1764097190550,0.4731,2928.1,2927.5,0.217]
[1764097191651,0.4731,2928.1,2927.6,3.41576718]
[1764097193243,3.60742688,2928.9,2927.6,6.83153436]
[1764097193244,0.4544,2928.4,2927.6,6.83153436]
[1764097193465,0.31383042,2928.3,2927.6,6.83153436]
[1764097193821,4.18318546,2928.3,2927.6,6.83153436]
[1764097194060,0.31383042,2928.2,2927.6,6.83153436]
[1764097194621,0.76823042,2928.2,2927.6,3.41576718]
[1764097194918,0.31383042,2928.1,2927.6,3.41576718]
[1764097195118,0.31383042,2928.1,2927.6,6.83153436]
[1764097195344,0.76823042,2928.1,2927.6,6.83153436]
[1764097195555,0.4544,2928.1,2927.6,6.83153436]
[1764097196852,3.86924123,2928.4,2927.6,6.83153436]
[1764097197055,0.4544,2928.1,2927.6,6.83153436]
[1764097197556,0.4544,2928.1,2927.7,0.217]
[1764097197759,0.4544,2928.4,2927.7,0.2511565]
[1764097197966,0.31424562,2928.3,2927.7,0.217]
[1764097198463,0.31424562,2928.3,2927.8,6.83106768]
[1764097199195,0.76864562,2928.2,2927.8,6.83106768]
[1764097199359,0.4544,2928.2,2927.8,6.83106768]
[1764097199858,3.87573795,2928.5,2927.9,0.217]
[1764097200163,0.31469994,2928.4,2927.9,0.217]
[1764097200361,0.31469994,2928.3,2927.9,3.63235478]
[1764097200549,0.4962,2928.0,2927.9,3.63241719]
[1764097200754,0.4962,2928.0,2927.3,3.41611724]
[1764097200955,0.46542682,2927.9,2927.3,3.41611724]
[1764097201184,0.77572682,2927.8,2927.4,0.217]
[1764097201392,0.31472682,2927.7,2927.2,0.217]
[1764097201636,0.4962,2927.3,2927.0,0.001]
[1764097201753,0.4962,2927.1,2927.0,0.001]
[1764097202062,0.81072428,2927.1,2927.0,0.001]
[1764097202263,1.27172428,2927.1,2927.0,0.001]
[1764097202467,4.68807493,2927.1,2927.0,0.001]
[1764097202915,1.27172428,2927.1,2927.0,0.001]
[1764097203269,0.461,2927.5,2927.0,0.001]
[1764097203588,0.461,2927.7,2927.0,0.001]
[1764097203779,0.31400907,2927.6,2927.1,0.217]
[1764097204166,0.1507,2927.9,2927.1,0.217]
[1764097204369,0.46459244,2927.9,2927.2,10.24870182]
[1764097204689,0.90386954,2928.7,2927.2,10.24870182]
[1764097204690,0.461,2928.4,2927.8,0.016]
[1764097204896,0.31391813,2928.3,2927.8,0.233]
[1764097205189,3.60743569,2928.9,2927.8,0.249]
[1764097205190,0.6541,2928.9,2927.8,0.249]
[1764097205359,0.77498349,2928.8,2927.8,0.249]
[1764097205688,0.31398349,2928.7,2927.8,0.016]
[1764097205893,0.77498349,2928.7,2927.9,0.218]
[1764097206093,0.31398349,2928.6,2927.9,0.218]
[1764097206291,0.31398349,2928.6,2928.0,6.83060108]
[1764097206292,0.77498349,2928.6,2928.0,6.83060108]
[1764097206494,1.36686954,2929.5,2928.0,6.83060108]
[1764097206711,0.461,2929.3,2928.1,0.016]
[1764097206910,0.31406176,2929.2,2928.1,0.016]
[1764097207099,0.002,2929.5,2928.1,0.521504]
[1764097207299,0.002,2929.5,2928.1,1.24709811]
[1764097207506,0.002,2929.5,2929.4,0.016]
[1764097207796,0.002,2929.5,2929.4,0.218]
[1764097208009,0.002,2929.5,2929.4,0.25]
[1764097208417,0.002,2929.5,2929.4,3.66266832]
[1764097208577,0.002,2929.5,2929.4,3.44566832]
[1764097208779,0.002,2929.5,2929.4,3.66266832]
[1764097208991,0.002,2930.1,2929.7,0.016]
[1764097209289,0.002,2930.1,2930.0,0.016]
[1764097209501,0.002,2930.1,2930.0,0.739504]
[1764097209696,0.002,2930.1,2930.0,0.755504]
[1764097210098,0.002,2930.1,2930.0,0.25]
[1764097210313,0.002,2930.1,2930.0,3.66296928]
[1764097210809,0.002,2930.1,2930.0,4.06847328]
[1764097210997,0.002,2930.7,2930.1,1.13109811]
[1764097211197,0.002,2930.7,2930.5,0.016]
[1764097211412,0.002,2930.7,2930.5,0.234]
[1764097211580,0.002,2930.7,2930.5,0.032]
[1764097211912,0.002,2930.7,2930.5,0.25]
[1764097212532,0.002,2930.7,2930.5,4.16789096]
[1764097212919,0.002,2930.7,2930.6,1.23109811]
[1764097213228,0.002,2931.2,2930.8,0.1]
[1764097213420,0.002,2931.2,2930.8,0.116]
[1764097213710,0.002,2931.2,2930.8,0.233]
[1764097213908,0.002,2931.2,2930.8,0.249]
[1764097214109,0.002,2931.2,2930.8,0.132]
[1764097214321,0.002,2931.2,2930.8,0.016]
[1764097214502,0.002,2931.2,2930.8,3.42803766]
[1764097214698,0.002,2931.2,2930.8,3.64503766]
[1764097215090,0.002,2931.2,2930.8,3.66103766]
[1764097215420,0.002,2931.2,2930.8,3.41203766]
[1764097215606,0.002,2931.2,2930.1,4.78157292]
[1764097215607,0.1912,2930.9,2930.3,6.82523972]
[1764097216001,0.1912,2930.9,2930.4,0.218]
[1764097216197,0.6522,2930.9,2930.3,3.41261986]
[1764097216419,0.6522,2930.9,2930.4,3.62950107]
[1764097216819,0.461,2930.8,2930.4,3.62950107]
[1764097217024,0.461,2930.8,2930.4,0.217]
[1764097217194,0.461,2930.8,2930.5,0.217]
[1764097217610,0.4962,2930.6,2930.5,0.217]
[1764097218223,0.9572,2930.6,2930.5,0.217]
[1764097218423,0.002,2930.9,2930.6,3.41227052]
[1764097218608,0.002,2930.9,2930.6,6.82454104]
[1764097218925,0.002,2930.9,2930.6,3.41227052]
[1764097219238,0.463,2930.9,2930.1,3.4128528]
[1764097219529,0.463,2930.9,2930.2,0.217]
[1764097220022,0.463,2930.9,2930.1,6.8257056]
[1764097220429,0.496,2930.2,2929.5,3.4134982]
[1764097220594,0.496,2930.2,2929.6,0.217]
[1764097220921,0.496,2930.2,2929.7,0.217]
[1764097221098,0.959,2930.2,2929.4,6.82733664]
[1764097221496,0.959,2930.2,2929.5,0.217]
[1764097222527,0.959,2930.2,2929.6,6.82687056]
[1764097223135,0.463,2930.6,2929.6,6.82687056]
[1764097224734,3.8753355,2930.6,2929.6,3.41343528]
[1764097225041,3.8753355,2930.6,2929.7,0.217]
[1764097225242,0.463,2930.5,2929.6,6.82687056]
[1764097225410,0.463,2930.5,2929.8,0.217]
[1764097226514,0.463,2930.5,2929.6,3.41343528]
[1764097226719,0.463,2930.5,2929.7,3.63029451]
[1764097226720,0.6778,2929.9,2929.7,3.63029451]
[1764097227023,0.1818,2929.9,2929.7,3.63029451]
[1764097227348,0.463,2930.2,2929.7,7.04361327]
[1764097227708,0.463,2930.2,2929.8,0.217]
[1764097228309,0.6778,2929.9,2929.8,0.217]
[1764097228715,0.6778,2929.9,2929.5,0.001]
[1764097228960,1.1408,2929.9,2929.8,0.217]
[1764097229259,0.6778,2929.9,2929.8,0.217]
[1764097229641,0.1818,2929.9,2929.8,0.217]
[1764097229838,0.1818,2929.9,2929.5,0.001]
[1764097229839,1.1408,2929.9,2929.5,0.001]
[1764097230139,0.496,2929.6,2929.5,0.218]
[1764097230514,0.959,2929.6,2929.5,0.218]
[1764097230916,0.496,2929.6,2929.5,3.6315518]
[1764097231843,0.1818,2929.9,2929.5,7.0451036]
[1764097232447,0.6448,2929.9,2929.5,3.6315518]
[1764097232743,0.496,2929.6,2929.5,0.001]
[1764097232964,0.463,2929.8,2929.5,0.001]
[1764097233120,0.463,2929.8,2929.6,0.217]
[1764097233532,0.496,2929.7,2929.6,0.217]
[1764097233945,0.959,2929.7,2929.6,0.217]
[1764097234346,0.959,2929.7,2929.5,0.218]
[1764097234549,0.959,2929.6,2929.5,0.218]
[1764097235059,0.959,2929.6,2929.5,3.6315518]
[1764097235263,0.959,2929.6,2929.5,0.218]
[1764097236050,0.959,2929.6,2929.5,0.001]
[1764097237152,0.1818,2929.9,2929.5,0.001]
[1764097237337,0.95808888,2929.9,2929.5,0.001]
[1764097237544,0.31328888,2929.8,2929.5,0.001]
[1764097238048,0.463,2929.8,2929.5,0.001]
[1764097238241,0.496,2929.6,2929.5,0.001]
[1764097238644,0.959,2929.6,2929.5,0.001]
[1764097239038,1.27198223,2929.6,2929.5,0.001]
[1764097239240,0.72559411,2929.5,2928.9,0.001]
[1764097239452,0.72559411,2929.5,2927.9,3.41537892]
[1764097239453,0.496,2929.0,2927.9,3.41537892]
[1764097239672,0.31298223,2928.9,2927.8,3.41553384]
[1764097239855,0.77598223,2928.9,2928.0,0.217]
[1764097240042,0.31298223,2928.8,2928.0,0.217]
[1764097240266,0.77598223,2928.8,2928.0,0.217]
[1764097240572,0.463,2929.4,2928.1,0.019]
[1764097240776,0.31273728,2929.3,2928.1,0.119]
[1764097241183,0.31273728,2929.3,2928.2,10.26420181]
[1764097241406,0.31273728,2929.3,2929.2,0.019]
[1764097241687,0.1818,2929.9,2929.1,0.217]
[1764097241688,0.463,2929.7,2929.1,0.217]
[1764097243242,0.31310476,2929.6,2929.2,3.4139014]
[1764097243686,0.77610476,2929.6,2929.2,3.4139014]
[1764097243977,0.463,2929.6,2929.2,3.4139014]
[1764097244274,0.463,2929.5,2929.2,3.4139014]
[1764097244469,0.463,2929.5,2929.2,3.6309014]
[1764097245488,0.1818,2929.9,2929.2,7.0448028]
[1764097245649,0.49532831,2929.9,2929.2,7.0448028]
[1764097246746,0.31352831,2929.9,2929.2,10.4587042]
[1764097246951,0.463,2930.3,2929.2,10.4587042]
[1764097247151,0.31371633,2930.2,2929.3,0.019]
[1764097247354,0.31371633,2930.1,2929.4,6.82733664]
[1764097247549,0.31371633,2930.0,2929.4,6.82733664]
[1764097247875,0.463,2930.3,2929.4,10.24100496]
[1764097248183,0.31385747,2930.2,2929.4,10.24100496]
[1764097248553,0.31385747,2930.1,2929.4,10.24100496]
[1764097248768,3.87563488,2930.3,2929.4,6.82733664]
[1764097248961,0.77702361,2930.2,2929.5,0.217]
[1764097249166,0.463,2930.6,2929.5,0.217]
[1764097249371,0.31416555,2930.5,2929.6,6.82687056]
[1764097249568,3.87528433,2930.6,2929.6,10.24030584]
[1764097249569,0.31416555,2930.4,2929.6,10.24030584]
[1764097249770,0.31416555,2930.3,2929.6,10.25930584]
[1764097249952,0.463,2930.6,2929.6,10.25930584]
[1764097250157,0.31421054,2930.5,2929.6,10.25930584]
[1764097250478,0.31421054,2930.4,2929.7,0.019]
[1764097250675,0.31421054,2930.3,2929.7,0.019]
[1764097250885,0.463,2930.6,2929.7,0.019]
[1764097251086,0.3143187,2930.5,2929.7,0.019]
[1764097251295,0.3143187,2930.4,2929.7,0.019]
[1764097251458,0.002,2930.7,2929.8,10.23960678]
[1764097251658,0.31435369,2930.6,2929.9,0.217]
[1764097251869,0.31435369,2930.5,2929.9,0.217]
[1764097252104,0.31435369,2930.4,2929.9,0.217]
[1764097252265,0.002,2930.7,2929.9,0.217]
[1764097252470,0.31429288,2930.6,2929.9,0.236]
[1764097252670,0.31429288,2930.5,2929.9,0.236]
[1764097252896,0.31429288,2930.4,2929.9,0.236]
[1764097253094,0.002,2930.7,2929.9,0.217]
[1764097253299,0.002,2930.7,2930.3,0.019]
[1764097253469,0.002,2930.7,2930.5,6.82477392]
[1764097253668,0.002,2930.7,2930.6,0.019]
[1764097254772,0.002,2930.7,2930.6,0.236]
[1764097255300,0.002,2930.7,2929.8,3.41308956]
[1764097255301,0.9429,2930.7,2929.8,3.41308956]
[1764097255535,0.9429,2930.7,2929.9,0.217]
[1764097255536,0.4513,2930.6,2929.9,0.217]
[1764097255705,0.4916,2930.7,2929.9,0.217]
[1764097255916,0.002,2930.7,2929.9,0.236]